bitfinex/quotes_ETHUSD_20250519
["timestamp","ask_amount","ask_price","bid_price","bid_amount"]
[1747684980802,3.97030213,2518.7,2518.6,22.627]
[1747684981212,4.59935858,2519.6,2518.6,22.627]
[1747684981510,3.97030213,2518.7,2518.6,22.627]
[1747684981924,3.97030213,2518.7,2518.6,22.75096516]
[1747684982301,3.9688092,2519.7,2518.6,22.75096516]
[1747684982498,3.96982485,2519.1,2518.7,1.62989684]
[1747684982834,3.96935656,2519.3,2518.8,0.12396516]
[1747684983139,3.96919901,2519.4,2518.8,0.12396516]
[1747684983140,3.9696717,2519.1,2519.0,8.0]
[1747684983500,3.9696717,2519.1,2519.0,8.12396516]
[1747684983706,0.3700483,2519.6,2519.0,8.12396516]
[1747684983951,3.96955647,2519.2,2519.0,8.12396516]
[1747684984118,3.96955647,2519.2,2519.1,1.6102]
[1747684984560,3.96955647,2519.2,2519.0,8.0]
[1747684984561,3.9696717,2519.1,2519.0,8.0]
[1747684984957,3.9696717,2519.1,2518.5,24.1215442]
[1747684984958,3.97045977,2518.6,2518.5,3.0]
[1747684985266,3.97045977,2518.6,2518.5,8.541]
[1747684986070,3.97101076,2518.3,2518.1,8.0]
[1747684986364,3.97101076,2518.3,2518.2,14.492]
[1747684988259,3.96982929,2519.0,2518.3,8.0]
[1747684988464,3.97077509,2518.4,2518.3,8.0]
[1747684988950,3.97077509,2518.4,2518.3,8.12398069]
[1747684989145,3.97032049,2518.7,2518.3,8.12398069]
[1747684989347,3.97072166,2518.5,2518.3,8.12398069]
[1747684989747,3.97072166,2518.5,2518.4,0.12398069]
[1747684989971,3.97053925,2518.6,2518.4,1.71528069]
[1747684990170,1.6225,2519.1,2518.4,1.71528069]
[1747684990356,3.97035006,2518.7,2518.5,0.12398069]
[1747684990550,3.97045977,2518.6,2518.5,0.12398069]
[1747684990948,3.9703732,2518.7,2518.5,0.12398069]
[1747684991479,3.97045977,2518.6,2518.5,0.12398069]
[1747684991667,3.97061743,2518.5,2518.4,1.5913]
[1747684992241,3.97061743,2518.5,2518.4,1.71527441]
[1747684992678,3.97061743,2518.5,2518.4,0.12397441]
[1747684992861,3.97061743,2518.5,2518.4,14.07497441]
[1747684993377,3.97061743,2518.5,2518.4,0.12397441]
[1747684993699,6.3441256,2518.5,2518.4,8.541]
[1747684994350,6.93690725,2518.5,2518.4,8.541]
[1747684996289,6.14279908,2518.5,2518.4,8.541]
[1747684996467,4.56339908,2518.5,2518.4,8.541]
[1747684996866,3.97061743,2518.5,2518.4,8.541]
[1747685000200,3.97054509,2518.6,2518.4,8.66497983]
[1747685000494,0.37048853,2518.7,2518.4,8.541]
[1747685000861,0.37048853,2519.1,2518.5,0.12396892]
[1747685001203,3.97036799,2518.7,2518.5,0.12396892]
[1747685001495,3.97036799,2518.7,2518.6,0.12396892]
[1747685003093,7.9391654,2519.2,2518.6,0.12396892]
[1747685003296,3.97006583,2518.9,2518.5,1.6315]
[1747685003597,3.97014451,2518.8,2518.7,5.951]
[1747685003776,3.97014451,2518.8,2518.7,23.092]
[1747685004315,3.97014451,2518.8,2518.7,23.21596372]
[1747685005294,3.97014451,2518.8,2518.7,17.26496372]
[1747685005671,3.97014451,2518.8,2518.7,17.141]
[1747685009364,3.96997204,2519.0,2518.7,17.141]
[1747685009685,3.96985232,2519.0,2518.7,17.141]
[1747685009885,3.96985232,2519.0,2518.8,1.6286]
[1747685010191,3.96974846,2519.1,2518.9,8.66495606]
[1747685010371,3.96982929,2519.0,2518.9,8.66495606]
[1747685011668,10.15766026,2519.0,2518.9,8.50095606]
[1747685012002,10.11798787,2519.0,2518.9,8.50095606]
[1747685012167,10.11798787,2519.0,2518.9,8.377]
[1747685012369,11.89713491,2519.0,2518.9,8.377]
[1747685012878,12.11939628,2519.0,2518.9,8.377]
[1747685013500,10.71062104,2519.0,2518.9,8.377]
[1747685016912,3.97014451,2518.8,2518.7,17.141]
[1747685017208,4.19240588,2518.8,2518.7,25.518]
[1747685017772,4.56277768,2518.8,2518.7,25.518]
[1747685018001,0.59263317,2518.8,2518.7,25.518]
[1747685018418,0.59263317,2518.8,2518.7,33.64196141]
[1747685018774,4.34011082,2519.3,2518.8,8.0]
[1747685019126,0.37061045,2519.3,2519.1,3.96963674]
[1747685019408,4.59444947,2519.7,2519.3,5.61780348]
[1747685019409,0.62563218,2519.7,2519.3,5.61780348]
[1747685019608,0.62563218,2519.7,2519.4,5.951]
[1747685019812,0.62563218,2519.7,2519.4,17.92019901]
[1747685019982,0.62563218,2519.7,2519.4,14.07496141]
[1747685020182,0.62563218,2519.7,2519.4,18.04416042]
[1747685020490,21.28892086,2520.1,2519.4,14.07496141]
[1747685020679,3.96834057,2520.0,2519.5,11.9689819]
[1747685020873,3.96827638,2520.0,2519.5,3.96896111]
[1747685021078,3.96827638,2520.0,2519.6,1.64166141]
[1747685021305,3.96827638,2520.0,2519.7,25.514]
[1747685021583,3.96827638,2520.0,2519.8,0.12396141]
[1747685021778,17.32080428,2520.1,2519.8,0.12396141]
[1747685021984,17.32080428,2520.1,2519.7,25.514]
[1747685022211,21.2889859,2520.1,2519.7,25.514]
[1747685022727,17.32080428,2520.1,2519.8,8.1239012]
[1747685022892,17.32080428,2520.1,2519.8,12.09245036]
[1747685023088,17.32080428,2520.1,2520.0,8.0]
[1747685023399,21.28892146,2520.1,2519.9,8.1239012]
[1747685023603,21.28899814,2520.1,2519.9,8.1239012]
[1747685024125,21.28899814,2520.1,2519.7,17.138]
[1747685024126,3.96856893,2519.8,2519.7,17.138]
[1747685024295,3.96856893,2519.8,2519.7,31.462]
[1747685025626,17.32080428,2520.1,2519.7,31.462]
[1747685025950,3.96849572,2519.9,2519.7,31.462]
[1747685027028,3.96856893,2519.8,2519.7,31.462]
[1747685027536,3.96848865,2519.9,2519.7,31.462]
[1747685028626,3.96832051,2520.0,2519.7,33.028]
[1747685028957,17.32080428,2520.1,2519.8,11.96855295]
[1747685029092,21.28890311,2520.1,2519.8,8.0]
[1747685029296,17.32080428,2520.1,2519.8,8.0]
[1747685029495,17.32080428,2520.1,2519.9,0.12389192]
[1747685029946,17.32080428,2520.1,2519.8,8.0]
[1747685030137,3.96841144,2519.9,2519.8,8.0]
[1747685030342,3.96856893,2519.8,2519.7,26.704]
[1747685030562,3.96856893,2519.8,2519.7,41.027]
[1747685030861,3.96849368,2519.9,2519.7,41.027]
[1747685031858,3.96856893,2519.8,2519.7,41.027]
[1747685032151,3.96848897,2519.9,2519.7,41.027]
[1747685033155,3.96854738,2519.9,2519.7,41.027]
[1747685033316,3.96855411,2519.9,2519.7,41.027]
[1747685033651,3.96856893,2519.8,2519.7,41.027]
[1747685035674,3.96856893,2519.8,2519.7,39.461]
[1747685035857,3.96856893,2519.8,2519.7,31.46]
[1747685036237,3.96856893,2519.8,2519.7,31.459]
[1747685036436,3.96849829,2519.9,2519.7,31.459]
[1747685036636,3.96856893,2519.8,2519.7,31.459]
[1747685037224,3.96854078,2519.9,2519.7,31.459]
[1747685037428,3.96854078,2519.9,2519.7,34.459]
[1747685037740,3.96856893,2519.8,2519.7,34.459]
[1747685038323,17.32080428,2520.1,2519.7,38.42764786]
[1747685038529,17.32080428,2520.1,2519.7,38.42765279]
[1747685038831,17.32080428,2520.1,2519.8,8.0]
[1747685039232,17.32080428,2520.1,2519.9,1.6193]
[1747685039530,17.32080428,2520.1,2520.0,18.52516496]
[1747685039749,17.32080428,2520.1,2520.0,18.64904459]
[1747685040106,17.32080428,2520.1,2520.0,14.68079063]
[1747685040266,17.32080428,2520.1,2520.0,11.12956463]
[1747685040465,17.32080428,2520.1,2520.0,29.29983759]
[1747685040653,17.32080428,2520.1,2520.0,25.33158363]
[1747685041010,17.32080428,2520.1,2520.0,24.58467163]
[1747685041392,17.32080428,2520.1,2520.0,28.55292559]
[1747685041803,17.32080428,2520.1,2520.0,28.84373851]
[1747685042361,21.28890078,2520.1,2520.0,24.78048455]
[1747685042672,21.28890078,2520.1,2520.0,25.82507155]
[1747685043082,21.28890078,2520.1,2520.0,25.83904492]
[1747685043282,21.28890078,2520.1,2520.0,24.69399792]
[1747685044070,21.28890078,2520.1,2520.0,2.46799792]
[1747685044268,22.92420078,2520.1,2520.0,14.224]
[1747685045185,21.28890078,2520.1,2520.0,14.224]
[1747685046451,3.96856893,2519.8,2519.7,28.138]
[1747685046653,3.96856893,2519.8,2519.7,42.48591311]
[1747685047894,3.96951413,2519.2,2519.1,8.73962839]
[1747685048204,5.60481413,2519.2,2519.1,8.73962839]
[1747685048547,5.97541196,2519.2,2519.1,0.46262839]
[1747685048793,5.97541196,2519.2,2519.1,8.73962839]
[1747685048951,6.19758458,2519.2,2519.1,8.73962839]
[1747685049151,7.65613373,2519.2,2519.1,8.73962839]
[1747685049980,7.65613373,2519.2,2519.1,8.277]
[1747685052696,7.43396111,2519.2,2519.1,8.277]
[1747685054262,5.58850213,2518.7,2518.6,17.129]
[1747685054462,5.58850213,2518.7,2518.6,25.409]
[1747685055775,6.98622183,2518.7,2518.6,25.409]
[1747685059092,3.96993913,2519.0,2518.6,25.409]
[1747685059093,3.97009322,2518.9,2518.6,25.409]
[1747685059294,5.55236478,2519.3,2518.6,25.409]
[1747685059611,3.97025777,2518.8,2518.6,25.409]
[1747685059858,3.96998689,2518.9,2518.6,33.409]
[1747685060011,3.97022779,2518.8,2518.6,33.409]
[1747685060174,3.97030213,2518.7,2518.6,33.409]
[1747685060569,3.9702346,2518.8,2518.6,33.409]
[1747685060807,3.97030213,2518.7,2518.6,33.409]
[1747685060985,3.97022301,2518.8,2518.6,33.409]
[1747685061816,3.97030213,2518.7,2518.6,33.409]
[1747685064312,3.96992061,2519.0,2518.6,44.32088]
[1747685064513,3.9696717,2519.1,2518.6,33.409]
[1747685064680,3.97021554,2518.8,2518.6,36.409]
[1747685065612,1.583,2519.3,2518.6,36.409]
[1747685065818,3.96914956,2519.5,2519.0,8.0]
[1747685066155,5.48707154,2520.2,2519.3,5.53596221]
[1747685066277,3.96873796,2519.7,2519.3,1.5667]
[1747685066778,3.96828622,2520.0,2519.3,1.5667]
[1747685066975,3.96912272,2519.5,2519.3,1.5667]
[1747685067181,3.96876308,2519.7,2519.5,8.0]
[1747685067417,3.96876308,2519.7,2519.6,33.419]
[1747685068204,3.96876308,2519.7,2519.6,25.419]
[1747685070286,3.96876308,2519.7,2519.6,28.419]
[1747685072742,3.96876308,2519.7,2519.6,34.363]
[1747685072927,3.96876308,2519.7,2519.6,31.363]
[1747685075252,3.96876308,2519.7,2519.6,34.363]
[1747685076238,3.96876308,2519.7,2519.6,34.362]
[1747685076444,3.96876308,2519.7,2519.6,31.362]
[1747685077120,3.96876308,2519.7,2519.6,25.413]
[1747685077324,4.76249924,2519.7,2519.6,31.362]
[1747685077521,3.96919901,2519.4,2519.3,17.134]
[1747685077701,8.38771899,2519.4,2519.3,25.409]
[1747685080314,3.96919901,2519.4,2519.3,25.409]
[1747685082054,3.96919901,2519.4,2519.3,33.409]
[1747685082655,3.96919901,2519.4,2519.3,25.409]
[1747685088562,4.76302317,2519.4,2519.3,25.409]
[1747685089446,3.96919901,2519.4,2519.3,25.409]
[1747685091260,8.38771899,2519.4,2519.3,25.409]
[1747685092057,8.98075262,2519.4,2519.3,25.409]
[1747685092965,4.56223264,2519.4,2519.3,25.409]
[1747685093544,4.19158383,2519.4,2519.3,25.409]
[1747685093770,3.96919901,2519.4,2519.3,25.409]
[1747685100078,3.96919901,2519.4,2519.3,31.358]
[1747685100260,4.76303337,2519.4,2519.3,31.358]
[1747685100462,4.76303337,2519.4,2519.3,25.409]
[1747685100664,4.76303337,2519.4,2519.3,17.134]
[1747685100846,3.97014451,2518.8,2518.7,0.46262839]
[1747685101051,3.97014451,2518.8,2518.7,8.73762839]
[1747685101374,3.97014451,2518.8,2518.7,8.275]
[1747685101375,10.8113479,2518.8,2518.7,8.275]
[1747685102394,11.18208811,2518.8,2518.7,8.275]
[1747685102690,11.40475622,2518.8,2518.7,8.275]
[1747685103886,6.98623624,2518.8,2518.7,8.275]
[1747685107989,3.9715636,2517.9,2517.5,18.7191]
[1747685108158,8.39055684,2517.6,2517.5,25.406]
[1747685112194,3.97203686,2517.6,2517.5,25.406]
[1747685115209,3.97203686,2517.6,2517.5,26.9889]
[1747685117548,3.97282587,2517.1,2517.0,8.27]
[1747685118821,3.97274361,2517.2,2517.0,8.27]
[1747685118822,3.97272987,2517.2,2517.0,8.27]
[1747685119127,3.97258745,2517.3,2517.1,9.5216]
[1747685120119,3.97266804,2517.2,2517.1,9.5216]
[1747685121114,3.97266804,2517.2,2517.1,15.4746]
[1747685122291,3.97266804,2517.2,2517.1,9.5216]
[1747685122620,3.97266804,2517.2,2517.1,13.954]
[1747685124842,5.21304112,2517.2,2516.5,17.145]
[1747685125131,3.97361519,2516.6,2516.5,17.145]
[1747685125329,3.97408894,2516.3,2516.2,8.73362839]
[1747685125825,8.39260892,2516.3,2516.2,0.46262839]
[1747685126019,10.79488662,2516.3,2516.2,0.46262839]
[1747685126232,3.97472077,2515.9,2515.8,25.419]
[1747685126933,5.54252077,2515.9,2515.8,25.419]
[1747685127110,5.54252077,2515.9,2515.8,8.271]
[1747685127310,6.93608395,2515.9,2515.8,8.271]
[1747685127934,6.93608395,2515.9,2515.4,8.271]
[1747685128102,3.97487876,2515.8,2515.4,8.271]
[1747685128434,3.97535281,2515.5,2515.4,8.271]
[1747685129200,3.97525907,2515.6,2515.4,8.271]
[1747685129415,3.97535281,2515.5,2515.4,8.271]
[1747685129827,3.97526277,2515.6,2515.4,8.271]
[1747685130136,3.97535281,2515.5,2515.4,8.271]
[1747685130302,3.97529992,2515.6,2515.4,8.271]
[1747685130799,3.97535281,2515.5,2515.4,8.271]
[1747685132738,3.9752314,2515.6,2515.4,8.271]
[1747685132935,3.9743537,2516.2,2515.5,8.0]
[1747685133123,5.59020006,2516.5,2515.5,11.9752698]
[1747685133124,3.97464993,2516.0,2515.5,11.9752698]
[1747685133509,3.97504481,2515.7,2515.5,8.0]
[1747685133839,3.97535281,2515.5,2515.4,1.5561]
[1747685134008,3.97535281,2515.5,2515.4,14.216]
[1747685134625,3.97519565,2515.6,2515.5,8.0]
[1747685134626,3.97527521,2515.6,2515.5,8.0]
[1747685137140,3.9750246,2515.8,2515.5,8.0]
[1747685137342,1.5356,2516.3,2515.7,9.5119]
[1747685137555,1.5356,2516.9,2515.7,9.5119]
[1747685137843,3.97475107,2515.9,2515.7,1.5119]
[1747685138033,1.5935,2516.3,2515.7,1.5119]
[1747685138508,1.5158,2516.5,2515.7,5.48684842]
[1747685138713,3.97435596,2516.2,2515.7,5.48684842]
[1747685138922,3.97435596,2516.2,2515.7,9.5119]
[1747685139254,3.97435596,2516.2,2515.9,8.0]
[1747685139431,3.97445621,2516.1,2516.0,16.261]
[1747685141338,3.97431536,2516.2,2516.0,16.261]
[1747685141544,3.97440483,2516.1,2516.0,16.261]
[1747685141949,3.97428021,2516.2,2516.0,16.261]
[1747685142754,3.97337255,2516.8,2516.4,8.0]
[1747685142919,3.97337255,2516.8,2516.5,8.26]
[1747685143119,1.5897,2517.1,2516.5,8.26]
[1747685143323,3.97222997,2517.5,2516.7,1.5239]
[1747685143549,3.97307772,2517.0,2516.7,2.16242317]
[1747685144255,3.97254816,2517.3,2516.7,1.81747914]
[1747685144460,3.97277734,2517.2,2516.7,5.79093291]
[1747685145166,1.5897,2517.7,2517.0,3.97292908]
[1747685145455,3.97187967,2517.7,2517.2,3.97258948]
[1747685145661,3.97145109,2518.0,2517.6,8.0]
[1747685145831,1.5878,2518.3,2517.8,8.0]
[1747685146030,1.5878,2518.6,2517.9,1.5783]
[1747685146235,3.97140587,2518.0,2517.9,1.5783]
[1747685146632,3.9715636,2517.9,2517.8,8.0]
[1747685147034,3.9714842,2518.0,2517.8,8.0]
[1747685147359,3.9714842,2518.0,2517.5,5.52651175]
[1747685147360,3.97149352,2518.0,2517.5,5.52651175]
[1747685147581,3.97149352,2518.0,2517.6,8.259]
[1747685147582,9.90949284,2517.9,2517.6,8.259]
[1747685147747,3.97172134,2517.8,2517.7,8.259]
[1747685148056,9.90950907,2517.9,2517.2,8.0]
[1747685148057,3.97226826,2517.5,2517.2,8.0]
[1747685148364,3.97195384,2517.7,2517.4,8.0]
[1747685148854,3.97159792,2517.9,2517.4,8.0]
[1747685148855,3.97219463,2517.5,2517.4,8.0]
[1747685149726,3.97235242,2517.4,2517.3,8.259]
[1747685150859,3.97209973,2517.6,2517.3,8.259]
[1747685151051,3.97235242,2517.4,2517.3,8.259]
[1747685151252,3.97209973,2517.6,2517.3,8.259]
[1747685151761,1.5194,2518.1,2517.5,1.5749]
[1747685152184,3.97203686,2517.6,2517.5,1.5749]
[1747685152330,3.97207411,2517.6,2517.4,8.0]
[1747685152679,3.9719407,2517.7,2517.4,8.0]
[1747685153162,3.97195807,2517.7,2517.4,8.0]
[1747685153998,1.5194,2518.1,2517.6,8.0]
[1747685154177,3.97154233,2518.0,2517.6,8.0]
[1747685155358,3.97157696,2517.9,2517.6,8.0]
[1747685155594,3.97157696,2517.9,2517.7,48.302883]
[1747685155797,3.97147796,2518.0,2517.8,8.257]
[1747685156983,3.9715636,2517.9,2517.8,8.257]
[1747685157283,3.9715636,2517.9,2517.8,15.109368]
[1747685157483,3.9715636,2517.9,2517.8,8.257]
[1747685157701,3.97235315,2517.4,2517.2,9.5832]
[1747685157909,3.97235315,2517.4,2517.3,8.256]
[1747685158070,5.51135315,2517.4,2517.3,8.256]
[1747685158401,3.97298371,2517.0,2516.9,8.256]
[1747685158560,3.97348668,2516.7,2516.4,8.0]
[1747685158896,3.97348668,2516.7,2516.5,8.58772366]
[1747685159101,1.539,2517.4,2516.5,8.256]
[1747685159299,3.97282587,2517.1,2516.5,8.256]
[1747685159487,3.97282587,2517.1,2516.5,14.21]
[1747685159689,3.97294432,2517.1,2516.6,9.6009]
[1747685159892,3.9731773,2516.9,2516.6,9.6009]
[1747685160296,3.9734573,2516.7,2516.6,8.0]
[1747685160494,3.9734573,2516.7,2516.6,16.256]
[1747685160798,3.97337557,2516.8,2516.6,16.256]
[1747685160992,3.9734573,2516.7,2516.6,16.256]
[1747685161202,1.539,2517.4,2516.6,31.524719]
[1747685161408,1.539,2517.4,2516.6,16.256]
[1747685161608,3.97309172,2517.0,2516.6,16.256]
[1747685161773,3.97323414,2516.9,2516.6,16.256]
[1747685161973,3.973042,2517.0,2516.6,16.256]
[1747685162272,3.97307571,2517.0,2516.6,16.256]
[1747685162477,3.97321226,2516.9,2516.6,16.256]
[1747685162894,3.97306598,2517.0,2516.6,16.256]
[1747685164002,3.97300962,2517.0,2516.6,16.256]
[1747685164416,3.97273611,2517.2,2516.6,20.22958158]
[1747685164727,3.97294414,2517.1,2516.6,12.22954608]
[1747685165011,3.97294414,2517.1,2516.6,8.256]
[1747685165612,3.97302876,2517.0,2516.6,8.256]
[1747685166211,3.97302876,2517.0,2516.6,12.22961022]
[1747685167813,0.72114842,2517.0,2516.6,8.256]
[1747685168109,3.97329942,2516.8,2516.7,14.195]
[1747685169086,8.0,2517.2,2516.3,19.01746574]
[1747685169286,3.97329942,2516.8,2516.7,8.241]
[1747685170319,3.97316404,2516.9,2516.7,8.241]
[1747685170522,3.97329942,2516.8,2516.7,8.241]
[1747685171115,3.97393101,2516.4,2516.3,17.148]
[1747685171442,3.97393101,2516.4,2516.3,25.389]
[1747685172724,5.56752077,2515.9,2515.8,8.70462839]
[1747685174031,5.56752077,2515.9,2515.8,8.242]
[1747685174216,3.97472077,2515.9,2515.8,8.242]
[1747685174528,3.97465359,2516.0,2515.8,8.242]
[1747685174689,3.97452357,2516.1,2515.8,9.7607]
[1747685174891,3.97432945,2516.2,2515.8,9.7607]
[1747685175091,3.97472077,2515.9,2515.8,9.7607]
[1747685175406,3.97393101,2516.4,2515.8,15.1267]
[1747685175407,8.0,2516.4,2515.8,15.1267]
[1747685175619,5.58811124,2516.5,2515.8,9.7607]
[1747685175821,3.97448869,2516.1,2515.8,9.7607]
[1747685175991,3.9744051,2516.1,2515.8,9.7607]
[1747685176301,3.97450894,2516.1,2515.8,9.7607]
[1747685176503,3.97463424,2516.0,2515.8,9.7607]
[1747685176706,3.97446575,2516.1,2515.8,9.7607]
[1747685176897,3.97447122,2516.1,2515.9,5.955]
[1747685177227,3.97456279,2516.0,2515.9,5.955]
[1747685179438,3.97519478,2515.6,2515.5,1.5596]
[1747685179741,3.97519478,2515.6,2515.5,15.7586]
[1747685179910,3.97519478,2515.6,2515.5,9.8026]
[1747685180115,3.97519478,2515.6,2515.5,14.199]
[1747685180527,3.97540372,2515.5,2515.4,5.956]
[1747685180742,3.97551085,2515.4,2515.3,18.6915]
[1747685180918,3.97551085,2515.4,2515.3,25.394]
[1747685181848,4.77060231,2515.4,2515.3,17.151]
[1747685182020,14.31560231,2515.4,2515.3,17.151]
[1747685182729,13.52051085,2515.4,2515.3,17.151]
[1747685183107,11.97551085,2515.4,2515.3,17.151]
[1747685183640,13.52701085,2515.4,2515.3,17.151]
[1747685185822,0.55,2515.9,2515.3,17.151]
[1747685185823,3.97384882,2516.5,2515.3,17.151]
[1747685186023,2.39073688,2516.4,2515.5,1.496]
[1747685186331,3.97481198,2515.9,2515.5,1.496]
[1747685186540,3.97481198,2515.9,2515.6,21.453122]
[1747685186829,3.97436976,2516.2,2515.7,12.22000723]
[1747685187162,3.9745517,2516.1,2515.8,5.957]
[1747685187323,3.97447266,2516.1,2515.8,5.957]
[1747685187520,3.97458232,2516.0,2515.8,5.957]
[1747685187735,3.97437538,2516.2,2515.8,5.957]
[1747685187921,3.97442007,2516.1,2515.8,5.957]
[1747685188150,3.97464603,2516.0,2515.8,5.957]
[1747685188456,3.97412722,2516.3,2515.8,5.957]
[1747685188633,3.97440967,2516.1,2515.8,5.957]
[1747685188837,3.97377575,2516.5,2515.8,5.957]
[1747685189149,3.97469106,2516.0,2515.8,5.957]
[1747685189348,3.97469106,2516.0,2515.9,2.038099]
[1747685189663,3.97440483,2516.1,2515.9,2.038099]
[1747685189868,3.97487876,2515.8,2515.7,8.245]
[1747685190179,3.97507643,2515.7,2515.5,1.496]
[1747685190352,3.97487876,2515.8,2515.5,1.496]
[1747685190353,3.97493436,2515.8,2515.6,14.202]
[1747685190553,3.97511278,2515.7,2515.6,14.202]
[1747685191170,1.552,2516.4,2515.6,14.54694403]
[1747685191344,8.0,2516.2,2515.6,14.202]
[1747685191559,3.97486773,2515.9,2515.6,14.202]
[1747685192259,3.97503676,2515.7,2515.6,8.245]
[1747685192475,3.97503676,2515.7,2515.6,14.202]
[1747685192646,3.97519478,2515.6,2515.3,17.151]
[1747685192842,3.97503676,2515.7,2515.6,8.245]
[1747685194282,3.97551085,2515.4,2515.3,17.151]
[1747685194479,3.97551085,2515.4,2515.3,31.339]
[1747685194777,3.97551085,2515.4,2515.3,25.382]
[1747685195275,3.97503116,2515.8,2515.4,1.5724]
[1747685195486,3.97505388,2515.7,2515.4,1.5724]
[1747685197861,3.97493759,2515.8,2515.4,9.5724]
[1747685198177,3.97512293,2515.7,2515.4,9.5724]
[1747685198382,3.97535281,2515.5,2515.4,9.5724]
[1747685198754,3.97527735,2515.6,2515.4,9.5724]
[1747685200661,3.97510079,2515.7,2515.5,4.496219]
[1747685200861,3.97510079,2515.7,2515.4,9.5724]
[1747685201176,3.97510079,2515.7,2515.5,5.082064]
[1747685201896,3.97496621,2515.8,2515.5,5.082064]
[1747685202199,3.97504488,2515.7,2515.4,9.5724]
[1747685202713,3.97504488,2515.7,2515.5,8.439293]
[1747685203161,5.58381055,2516.3,2515.5,2.172183]
[1747685203355,5.58381055,2516.3,2515.4,9.5724]
[1747685203561,3.97424688,2516.2,2515.4,9.5724]
[1747685203799,3.97529147,2515.6,2515.4,9.5724]
[1747685204793,3.97511844,2515.7,2515.4,9.5724]
[1747685205171,3.97511844,2515.7,2515.3,17.151]
[1747685205172,3.97551085,2515.4,2515.3,17.151]
[1747685205376,3.97551085,2515.4,2515.3,25.383]
[1747685205587,5.40581085,2515.4,2515.3,25.383]
[1747685210970,3.97661748,2514.7,2514.6,0.46262839]
[1747685211169,6.13812854,2514.7,2514.6,8.69462839]
[1747685213591,6.13812854,2514.7,2514.6,8.232]
[1747685215075,3.97661748,2514.7,2514.6,8.232]
[1747685216110,3.97583115,2515.2,2514.6,8.232]
[1747685216111,3.97634346,2514.9,2514.6,8.232]
[1747685216617,3.97661748,2514.7,2514.6,16.232]
[1747685216917,3.97661748,2514.7,2514.6,19.346514]
[1747685217500,3.97661748,2514.7,2514.6,8.0]
[1747685217706,3.97661748,2514.7,2514.6,22.193]
[1747685218710,3.97661748,2514.7,2514.6,25.959384]
[1747685218919,3.97535281,2515.5,2514.9,1.3858]
[1747685219124,1.3919,2515.6,2514.9,1.3858]
[1747685219619,3.97606571,2515.1,2514.9,1.3858]
[1747685219824,3.97606571,2515.1,2515.0,3.083283]
[1747685220189,3.97606571,2515.1,2515.0,2.044283]
[1747685220517,3.97614314,2515.0,2514.9,1.3858]
[1747685221030,3.97614314,2515.0,2514.9,8.0]
[1747685221521,3.97606571,2515.1,2514.9,8.0]
[1747685221723,3.97614314,2515.0,2514.9,8.0]
[1747685222420,3.97614314,2515.0,2514.9,10.064283]
[1747685223166,3.97614314,2515.0,2514.9,8.0]
[1747685223943,3.97614314,2515.0,2514.9,22.193]
[1747685224654,1.3919,2515.6,2515.0,8.0]
[1747685224945,3.97590842,2515.2,2515.0,8.0]
[1747685225291,3.97442134,2516.1,2514.9,14.193]
[1747685225292,1.3753,2516.3,2515.2,9.3786]
[1747685225405,3.9756689,2515.3,2514.9,1.3786]
[1747685225609,3.97582697,2515.2,2515.1,8.0]
[1747685226033,3.97611198,2515.1,2514.9,1.3786]
[1747685226239,3.97611198,2515.1,2515.0,24.246559]
[1747685226434,1.4125,2516.0,2515.1,8.0]
[1747685226629,3.97542079,2515.5,2515.2,1.3427]
[1747685226936,3.97524295,2515.6,2515.2,1.3427]
[1747685227124,1.45217239,2516.2,2515.2,1.3427]
[1747685227428,3.97543637,2515.5,2515.2,1.3427]
[1747685227731,3.97526737,2515.6,2515.2,1.3427]
[1747685227949,3.97526737,2515.6,2515.3,8.0]
[1747685228112,3.97487876,2515.8,2515.4,17.162]
[1747685228428,3.97519478,2515.6,2515.5,8.218]
[1747685228638,3.97513101,2515.7,2515.5,15.2258]
[1747685228938,3.97519478,2515.6,2515.5,8.218]
[1747685229090,3.97519478,2515.6,2515.5,13.459013]
[1747685229730,3.97519478,2515.6,2515.5,23.359013]
[1747685231011,3.97493365,2515.8,2515.5,23.359013]
[1747685231012,3.9751246,2515.7,2515.6,8.0]
[1747685233437,1.4125,2516.2,2515.7,1.3453]
[1747685233640,3.97446767,2516.1,2515.8,8.0]
[1747685233939,3.97456318,2516.0,2515.7,1.3453]
[1747685234437,3.92519478,2515.6,2515.5,9.9]
[1747685234606,3.92519478,2515.6,2515.5,18.117]
[1747685235001,3.92519478,2515.6,2515.5,23.034501]
[1747685235357,3.92519478,2515.6,2515.5,20.658131]
[1747685235665,3.92519478,2515.6,2515.5,26.616131]
[1747685236563,5.21959478,2515.6,2515.5,1.9]
[1747685236741,5.27022697,2515.2,2515.1,0.29923269]
[1747685237124,3.97598505,2515.1,2515.0,0.46262839]
[1747685239222,3.97614314,2515.0,2514.9,8.0]
[1747685242161,3.97630124,2514.9,2514.8,25.16]
[1747685242351,4.77151406,2514.9,2514.8,25.16]
[1747685243129,6.11251406,2514.9,2514.8,17.16]
[1747685243357,6.11251406,2514.9,2514.8,25.377]
[1747685245176,3.97630124,2514.9,2514.8,25.377]
[1747685245471,3.97630124,2514.9,2514.8,33.377]
[1747685245632,3.97622577,2515.0,2514.9,8.0]
[1747685245828,3.9760707,2515.1,2514.9,8.0]
[1747685246353,3.97614314,2515.0,2514.9,8.0]
[1747685248585,3.97614314,2515.0,2514.9,16.765182]
[1747685249189,3.97614314,2515.0,2514.9,16.411172]
[1747685249953,3.97614314,2515.0,2514.9,15.951204]
[1747685251495,3.97614314,2515.0,2514.9,13.595108]
[1747685252289,3.97614314,2515.0,2514.9,13.959]
[1747685254454,3.97614314,2515.0,2514.9,8.0]
[1747685254653,3.97614314,2515.0,2514.9,22.177]
[1747685258200,3.97614314,2515.0,2514.8,17.16]
[1747685258201,3.97630124,2514.9,2514.8,17.16]
[1747685258389,3.97630124,2514.9,2514.8,25.367]